[Event "Titled Tuesday Blitz March 21 Late 2023"]
[White "Gonzalez, Francisco Silva"]
[Black "Zakhartsov, Vladimir"]
[WhiteFideId "1512285"]
[BlackFideId "4145097"]
[WhiteElo "2074"]
[BlackElo "2521"]
[Result "0-1"]
[Round "01"]
[TimeControl "180+2"]
[Date "2023.03.21"]
[WhiteClock "0:00:33"]
[BlackClock "0:00:45"]

1. d4 {[%clk 0:02:58]}  Nf6 {[%clk 0:02:59]} 2. c4 {[%clk 0:02:57]}  e6 {[%clk 0:02:59]} 3. Nc3 {[%clk 0:02:55]}  Bb4 {[%clk 0:02:59]} 4. a3 {[%clk 0:02:52]}  Bxc3+ {[%clk 0:02:59]} 5. bxc3 {[%clk 0:02:53]}  O-O {[%clk 0:02:50]} 6. e3 {[%clk 0:02:52]}  d6 {[%clk 0:02:49]} 7. f3 {[%clk 0:02:51]}  e5 {[%clk 0:02:47]} 8. e4 {[%clk 0:02:51]}  b6 {[%clk 0:02:42]} 9. Bd3 {[%clk 0:02:50]}  Ba6 {[%clk 0:02:42]} 10. Ne2 {[%clk 0:02:49]}  Nc6 {[%clk 0:02:39]} 11. Bg5 {[%clk 0:02:46]}  Na5 {[%clk 0:02:39]} 12. Ng3 {[%clk 0:02:45]}  h6 {[%clk 0:02:38]} 13. Bc1 {[%clk 0:02:34]}  Bxc4 {[%clk 0:02:36]} 14. Bxc4 {[%clk 0:02:32]}  Nxc4 {[%clk 0:02:37]} 15. Qd3 {[%clk 0:02:32]}  d5 {[%clk 0:02:35]} 16. O-O {[%clk 0:02:29]}  b5 {[%clk 0:02:35]} 17. a4 {[%clk 0:02:28]}  dxe4 {[%clk 0:02:32]} 18. fxe4 {[%clk 0:02:25]}  c6 {[%clk 0:02:29]} 19. axb5 {[%clk 0:02:25]}  cxb5 {[%clk 0:02:28]} 20. Nf5 {[%clk 0:02:24]}  Kh7 {[%clk 0:02:10]} 21. Ra6 {[%clk 0:02:11]}  Ng8 {[%clk 0:01:59]} 22. Qh3 {[%clk 0:02:04]}  f6 {[%clk 0:01:54]} 23. d5 {[%clk 0:01:49]}  Qc8 {[%clk 0:01:46]} 24. Rc6 {[%clk 0:01:44]}  Qd7 {[%clk 0:01:43]} 25. Qg4 {[%clk 0:01:33]}  Rac8 {[%clk 0:01:33]} 26. Ra6 {[%clk 0:01:30]}  Rf7 {[%clk 0:01:26]} 27. Qe2 {[%clk 0:01:25]}  Ne7 {[%clk 0:01:21]} 28. Nh4 {[%clk 0:01:15]}  Qb7 {[%clk 0:01:10]} 29. Re6 {[%clk 0:01:12]}  Ng6 {[%clk 0:00:55]} 30. Nf5 {[%clk 0:01:10]}  Nf8 {[%clk 0:00:53]} 31. Qg4 {[%clk 0:01:00]}  Nxe6 {[%clk 0:00:51]} 32. dxe6 {[%clk 0:01:00]}  Qb6+ {[%clk 0:00:50]} 33. Kh1 {[%clk 0:00:52]}  Qxe6 {[%clk 0:00:49]} 34. Nxh6 {[%clk 0:00:50]}  Qxg4 {[%clk 0:00:48]} 35. Nxg4 {[%clk 0:00:50]}  Rd7 {[%clk 0:00:48]} 36. Ne3 {[%clk 0:00:48]}  Nxe3 {[%clk 0:00:48]} 37. Bxe3 {[%clk 0:00:48]}  Rxc3 {[%clk 0:00:48]} 38. Bc1 {[%clk 0:00:42]}  Rcd3 {[%clk 0:00:47]} 39. Bh6 {[%clk 0:00:39]}  Rd1 {[%clk 0:00:46]} 40. Bc1 {[%clk 0:00:33]}  Rxf1# {[%clk 0:00:45]} 0-1


[Site "https://www.chess.com"]

[Event "Titled Tuesday Blitz March 21 Late 2023"]
[White "Tymrakiewicz, Rafal"]
[Black "Van Foreest, Lucas"]
[WhiteFideId "1108832"]
[BlackFideId "1039792"]
[WhiteElo "2151"]
[BlackElo "2519"]
[Result "0-1"]
[Round "01"]
[TimeControl "180+2"]
[Date "2023.03.21"]
[WhiteClock "0:00:01"]
[BlackClock "0:01:27"]

1. e4 {[%clk 0:03:00]}  b5 {[%clk 0:02:56]} 2. d4 {[%clk 0:02:49]}  Bb7 {[%clk 0:02:56]} 3. Nd2 {[%clk 0:02:47]}  a6 {[%clk 0:02:55]} 4. Bd3 {[%clk 0:02:46]}  Nf6 {[%clk 0:02:55]} 5. f4 {[%clk 0:02:42]}  e6 {[%clk 0:02:51]} 6. Ngf3 {[%clk 0:02:41]}  c5 {[%clk 0:02:52]} 7. c3 {[%clk 0:02:40]}  Qb6 {[%clk 0:02:44]} 8. O-O {[%clk 0:02:28]}  Nc6 {[%clk 0:02:40]} 9. Kh1 {[%clk 0:02:20]}  cxd4 {[%clk 0:02:40]} 10. cxd4 {[%clk 0:02:20]}  Nxd4 {[%clk 0:02:39]} 11. Nxd4 {[%clk 0:02:20]}  Qxd4 {[%clk 0:02:40]} 12. Nb3 {[%clk 0:01:51]}  Qb6 {[%clk 0:02:38]} 13. Qe2 {[%clk 0:01:50]}  d6 {[%clk 0:02:30]} 14. Be3 {[%clk 0:01:48]}  Qd8 {[%clk 0:02:30]} 15. Bd4 {[%clk 0:01:23]}  Be7 {[%clk 0:02:16]} 16. Rad1 {[%clk 0:01:23]}  O-O {[%clk 0:02:09]} 17. Rf3 {[%clk 0:00:42]}  Qc7 {[%clk 0:01:53]} 18. Rc1 {[%clk 0:00:33]}  Qb8 {[%clk 0:01:53]} 19. Rg3 {[%clk 0:00:19]}  e5 {[%clk 0:01:53]} 20. Be3 {[%clk 0:00:19]}  Bxe4 {[%clk 0:01:39]} 21. fxe5 {[%clk 0:00:09]}  dxe5 {[%clk 0:01:36]} 22. Bg5 {[%clk 0:00:04]}  Bg6 {[%clk 0:01:35]} 23. Bxg6 {[%clk 0:00:03]}  hxg6 {[%clk 0:01:33]} 24. Rf1 {[%clk 0:00:03]}  Qd6 {[%clk 0:01:28]} 25. Nd2 {[%clk 0:00:04]}  Nh5 {[%clk 0:01:27]} 26. Ne4 {[%clk 0:00:04]}  Nxg3+ {[%clk 0:01:27]} 27. hxg3 {[%clk 0:00:03]}  Qe6 {[%clk 0:01:27]} 28. Bxe7 {[%clk 0:00:01]}  Qxe7 {[%clk 0:01:27]} 0-1


[Site "https://www.chess.com"]

[Event "Titled Tuesday Blitz March 21 Late 2023"]
[White "Tworuszka, Michal"]
[Black "Rostovtsev, Dmitry"]
[WhiteFideId "1117858"]
[BlackFideId "34278320"]
[WhiteElo "2449"]
[BlackElo "2280"]
[Result "0-1"]
[Round "01"]
[TimeControl "180+2"]
[Date "2023.03.21"]
[WhiteClock "0:00:12"]
[BlackClock "0:00:32"]

1. d4 {[%clk 0:02:50]}  Nf6 {[%clk 0:02:57]} 2. c4 {[%clk 0:02:50]}  e6 {[%clk 0:02:57]} 3. Nc3 {[%clk 0:02:46]}  Bb4 {[%clk 0:02:57]} 4. f3 {[%clk 0:02:46]}  d5 {[%clk 0:02:55]} 5. a3 {[%clk 0:02:46]}  Bxc3+ {[%clk 0:02:53]} 6. bxc3 {[%clk 0:02:45]}  c6 {[%clk 0:02:53]} 7. e3 {[%clk 0:02:40]}  O-O {[%clk 0:02:53]} 8. Nh3 {[%clk 0:02:40]}  b6 {[%clk 0:02:51]} 9. Nf4 {[%clk 0:02:38]}  Ba6 {[%clk 0:02:50]} 10. Qb3 {[%clk 0:02:28]}  Nbd7 {[%clk 0:02:46]} 11. Be2 {[%clk 0:02:23]}  e5 {[%clk 0:02:34]} 12. Nh3 {[%clk 0:02:17]}  Re8 {[%clk 0:02:29]} 13. O-O {[%clk 0:02:15]}  c5 {[%clk 0:02:19]} 14. Qa4 {[%clk 0:01:45]}  Qc8 {[%clk 0:02:12]} 15. dxe5 {[%clk 0:01:25]}  Nxe5 {[%clk 0:02:09]} 16. Nf4 {[%clk 0:01:25]}  Nxc4 {[%clk 0:01:53]} 17. Bxc4 {[%clk 0:01:23]}  Bxc4 {[%clk 0:01:53]} 18. Rd1 {[%clk 0:01:22]}  b5 {[%clk 0:01:46]} 19. Qc2 {[%clk 0:01:22]}  a5 {[%clk 0:01:44]} 20. a4 {[%clk 0:01:22]}  b4 {[%clk 0:01:44]} 21. cxb4 {[%clk 0:01:22]}  axb4 {[%clk 0:01:43]} 22. Bb2 {[%clk 0:01:21]}  Qc6 {[%clk 0:01:39]} 23. Qd2 {[%clk 0:01:19]}  Bb3 {[%clk 0:01:34]} 24. Rdc1 {[%clk 0:01:14]}  Red8 {[%clk 0:01:26]} 25. Qxb4 {[%clk 0:01:11]}  cxb4 {[%clk 0:01:21]} 26. Rxc6 {[%clk 0:01:11]}  Bc4 {[%clk 0:00:59]} 27. Rb6 {[%clk 0:01:02]}  Rdb8 {[%clk 0:00:56]} 28. a5 {[%clk 0:00:59]}  Nd7 {[%clk 0:00:54]} 29. Rxb8+ {[%clk 0:00:57]}  Rxb8 {[%clk 0:00:55]} 30. Kf2 {[%clk 0:00:55]}  Nc5 {[%clk 0:00:53]} 31. h4 {[%clk 0:00:46]}  Ra8 {[%clk 0:00:52]} 32. g4 {[%clk 0:00:44]}  h6 {[%clk 0:00:50]} 33. g5 {[%clk 0:00:44]}  hxg5 {[%clk 0:00:48]} 34. hxg5 {[%clk 0:00:44]}  Nb3 {[%clk 0:00:47]} 35. Ra4 {[%clk 0:00:40]}  Rxa5 {[%clk 0:00:47]} 36. Rxb4 {[%clk 0:00:40]}  Ra2 {[%clk 0:00:47]} 37. Rb8+ {[%clk 0:00:40]}  Kh7 {[%clk 0:00:47]} 38. Kg3 {[%clk 0:00:38]}  Rxb2 {[%clk 0:00:47]} 39. Nh5 {[%clk 0:00:35]}  Re2 {[%clk 0:00:39]} 40. Re8 {[%clk 0:00:34]}  Nd4 {[%clk 0:00:34]} 41. Nf4 {[%clk 0:00:31]}  Nf5+ {[%clk 0:00:34]} 42. Kg4 {[%clk 0:00:31]}  Rxe3 {[%clk 0:00:34]} 43. Rf8 {[%clk 0:00:25]}  Nd6 {[%clk 0:00:33]} 44. Rd8 {[%clk 0:00:14]}  Nb5 {[%clk 0:00:33]} 45. Rd7 {[%clk 0:00:14]}  d4 {[%clk 0:00:32]} 46. Nh5 {[%clk 0:00:12]}  Be6+ {[%clk 0:00:32]} 0-1


[Site "https://www.chess.com"]

[Event "Titled Tuesday Blitz March 21 Late 2023"]
[White "Timofeev, Artyom"]
[Black "Stelmaszyk, Nico"]
[WhiteFideId "4140419"]
[BlackFideId "16200462"]
[WhiteElo "2586"]
[BlackElo "2255"]
[Result "1/2-1/2"]
[Round "01"]
[TimeControl "180+2"]
[Date "2023.03.21"]
[WhiteClock "0:00:06"]
[BlackClock "0:00:21"]

1. e4 {[%clk 0:02:59]}  c5 {[%clk 0:02:57]} 2. Nf3 {[%clk 0:02:58]}  Nc6 {[%clk 0:02:56]} 3. d4 {[%clk 0:02:57]}  cxd4 {[%clk 0:02:55]} 4. Nxd4 {[%clk 0:02:57]}  e6 {[%clk 0:02:53]} 5. Nc3 {[%clk 0:02:55]}  Nf6 {[%clk 0:02:52]} 6. Ndb5 {[%clk 0:02:53]}  d6 {[%clk 0:02:51]} 7. Bf4 {[%clk 0:02:51]}  e5 {[%clk 0:02:51]} 8. Bg5 {[%clk 0:02:51]}  a6 {[%clk 0:02:52]} 9. Na3 {[%clk 0:02:51]}  b5 {[%clk 0:02:53]} 10. Nd5 {[%clk 0:02:50]}  Be7 {[%clk 0:02:51]} 11. Bxf6 {[%clk 0:02:49]}  Bxf6 {[%clk 0:02:52]} 12. c4 {[%clk 0:02:48]}  b4 {[%clk 0:02:39]} 13. Nc2 {[%clk 0:02:47]}  O-O {[%clk 0:02:40]} 14. Qf3 {[%clk 0:02:41]}  Bg5 {[%clk 0:02:34]} 15. h4 {[%clk 0:02:40]}  Be7 {[%clk 0:02:19]} 16. Rd1 {[%clk 0:02:27]}  Rb8 {[%clk 0:02:15]} 17. Be2 {[%clk 0:02:19]}  Be6 {[%clk 0:02:12]} 18. g3 {[%clk 0:01:59]}  Kh8 {[%clk 0:02:07]} 19. O-O {[%clk 0:01:56]}  f5 {[%clk 0:02:04]} 20. Nxe7 {[%clk 0:01:38]}  Nxe7 {[%clk 0:02:03]} 21. c5 {[%clk 0:01:35]}  d5 {[%clk 0:01:56]} 22. exd5 {[%clk 0:01:27]}  Bxd5 {[%clk 0:01:54]} 23. Qe3 {[%clk 0:01:21]}  Qc7 {[%clk 0:01:51]} 24. Bxa6 {[%clk 0:01:14]}  f4 {[%clk 0:01:50]} 25. Qe2 {[%clk 0:01:03]}  Bxa2 {[%clk 0:01:41]} 26. Bc4 {[%clk 0:00:58]}  f3 {[%clk 0:01:27]} 27. Qe4 {[%clk 0:00:57]}  Bxc4 {[%clk 0:01:10]} 28. Qxc4 {[%clk 0:00:57]}  Nf5 {[%clk 0:01:05]} 29. Rd5 {[%clk 0:00:43]}  e4 {[%clk 0:01:02]} 30. Qxe4 {[%clk 0:00:35]}  Nxg3 {[%clk 0:00:58]} 31. Qe5 {[%clk 0:00:35]}  Qxe5 {[%clk 0:00:58]} 32. Rxe5 {[%clk 0:00:35]}  Nxf1 {[%clk 0:00:58]} 33. Kxf1 {[%clk 0:00:35]}  Rf4 {[%clk 0:00:56]} 34. h5 {[%clk 0:00:32]}  Rc4 {[%clk 0:00:56]} 35. Ne1 {[%clk 0:00:31]}  Rc1 {[%clk 0:00:53]} 36. Kg1 {[%clk 0:00:27]}  h6 {[%clk 0:00:50]} 37. Kh2 {[%clk 0:00:26]}  Rc8 {[%clk 0:00:49]} 38. Nd3 {[%clk 0:00:26]}  Rc4 {[%clk 0:00:44]} 39. Kg3 {[%clk 0:00:24]}  Rd4 {[%clk 0:00:40]} 40. Re3 {[%clk 0:00:24]}  Rf8 {[%clk 0:00:37]} 41. Ne5 {[%clk 0:00:23]}  Kh7 {[%clk 0:00:31]} 42. c6 {[%clk 0:00:23]}  Rd5 {[%clk 0:00:27]} 43. Nxf3 {[%clk 0:00:20]}  Rxh5 {[%clk 0:00:26]} 44. Nd4 {[%clk 0:00:20]}  Rc5 {[%clk 0:00:25]} 45. Ne6 {[%clk 0:00:19]}  Rff5 {[%clk 0:00:23]} 46. Nxc5 {[%clk 0:00:19]}  Rxc5 {[%clk 0:00:24]} 47. Re4 {[%clk 0:00:18]}  b3 {[%clk 0:00:22]} 48. Rb4 {[%clk 0:00:18]}  Rxc6 {[%clk 0:00:22]} 49. Rxb3 {[%clk 0:00:18]}  Rc1 {[%clk 0:00:22]} 50. Rb8 {[%clk 0:00:18]}  Kg6 {[%clk 0:00:23]} 51. b4 {[%clk 0:00:18]}  Rb1 {[%clk 0:00:23]} 52. b5 {[%clk 0:00:18]}  Kg5 {[%clk 0:00:24]} 53. b6 {[%clk 0:00:18]}  g6 {[%clk 0:00:24]} 54. b7 {[%clk 0:00:16]}  Rb3+ {[%clk 0:00:24]} 55. Kg2 {[%clk 0:00:16]}  Kh5 {[%clk 0:00:25]} 56. f4 {[%clk 0:00:15]}  Kg4 {[%clk 0:00:24]} 57. f5 {[%clk 0:00:15]}  Rb2+ {[%clk 0:00:21]} 58. Kf1 {[%clk 0:00:13]}  Kf3 {[%clk 0:00:15]} 59. Kg1 {[%clk 0:00:13]}  gxf5 {[%clk 0:00:15]} 60. Rf8 {[%clk 0:00:12]}  Rxb7 {[%clk 0:00:15]} 61. Rxf5+ {[%clk 0:00:12]}  Kg4 {[%clk 0:00:16]} 62. Rf8 {[%clk 0:00:11]}  h5 {[%clk 0:00:16]} 63. Rf2 {[%clk 0:00:09]}  Rb1+ {[%clk 0:00:15]} 64. Kh2 {[%clk 0:00:09]}  h4 {[%clk 0:00:15]} 65. Rg2+ {[%clk 0:00:09]}  Kf4 {[%clk 0:00:16]} 66. Rf2+ {[%clk 0:00:09]}  Kg4 {[%clk 0:00:16]} 67. Rg2+ {[%clk 0:00:09]}  Kf3 {[%clk 0:00:17]} 68. Ra2 {[%clk 0:00:08]}  Rf1 {[%clk 0:00:15]} 69. Ra3+ {[%clk 0:00:08]}  Kg4 {[%clk 0:00:15]} 70. Ra4+ {[%clk 0:00:08]}  Rf4 {[%clk 0:00:16]} 71. Rxf4+ {[%clk 0:00:08]}  Kxf4 {[%clk 0:00:17]} 72. Kh3 {[%clk 0:00:08]}  Kg5 {[%clk 0:00:16]} 73. Kh2 {[%clk 0:00:08]}  Kg4 {[%clk 0:00:17]} 74. Kg2 {[%clk 0:00:07]}  h3+ {[%clk 0:00:18]} 75. Kh2 {[%clk 0:00:07]}  Kh4 {[%clk 0:00:18]} 76. Kh1 {[%clk 0:00:07]}  Kg3 {[%clk 0:00:19]} 77. Kg1 {[%clk 0:00:07]}  h2+ {[%clk 0:00:20]} 78. Kh1 {[%clk 0:00:06]}  Kh3 {[%clk 0:00:21]} 1/2-1/2


[Site "https://www.chess.com"]

[Event "Titled Tuesday Blitz March 21 Late 2023"]
[White "Mazurkiewicz, Michal"]
[Black "Vakhlamov, Igor L."]
[WhiteFideId "1124943"]
[BlackFideId "24126748"]
[WhiteElo "2054"]
[BlackElo "2400"]
[Result "1/2-1/2"]
[Round "01"]
[TimeControl "180+2"]
[Date "2023.03.21"]
[WhiteClock "0:00:06"]
[BlackClock "0:00:18"]

1. e4 {[%clk 0:02:59]}  c5 {[%clk 0:03:00]} 2. Nf3 {[%clk 0:03:00]}  e6 {[%clk 0:03:00]} 3. d3 {[%clk 0:03:00]}  d5 {[%clk 0:03:00]} 4. Nbd2 {[%clk 0:03:00]}  Nc6 {[%clk 0:03:00]} 5. g3 {[%clk 0:03:01]}  Nf6 {[%clk 0:03:00]} 6. Bg2 {[%clk 0:03:01]}  g6 {[%clk 0:03:01]} 7. O-O {[%clk 0:03:01]}  Bg7 {[%clk 0:03:02]} 8. Re1 {[%clk 0:03:02]}  O-O {[%clk 0:03:02]} 9. Qe2 {[%clk 0:03:03]}  a5 {[%clk 0:03:00]} 10. Nf1 {[%clk 0:03:01]}  e5 {[%clk 0:02:48]} 11. exd5 {[%clk 0:02:55]}  Nxd5 {[%clk 0:02:49]} 12. Ne3 {[%clk 0:02:55]}  Be6 {[%clk 0:02:39]} 13. Ng5 {[%clk 0:02:49]}  Qxg5 {[%clk 0:02:30]} 14. Nxd5 {[%clk 0:02:48]}  Qd8 {[%clk 0:02:30]} 15. Nc3 {[%clk 0:02:30]}  Qd7 {[%clk 0:02:19]} 16. Ne4 {[%clk 0:02:25]}  b6 {[%clk 0:02:07]} 17. Bh6 {[%clk 0:02:22]}  f5 {[%clk 0:02:02]} 18. Bxg7 {[%clk 0:02:21]}  Kxg7 {[%clk 0:02:03]} 19. Nc3 {[%clk 0:02:18]}  e4 {[%clk 0:01:55]} 20. dxe4 {[%clk 0:02:13]}  Nd4 {[%clk 0:01:55]} 21. Qd1 {[%clk 0:02:07]}  f4 {[%clk 0:01:53]} 22. Nd5 {[%clk 0:01:23]}  f3 {[%clk 0:01:39]} 23. Bf1 {[%clk 0:01:23]}  Bxd5 {[%clk 0:01:27]} 24. exd5 {[%clk 0:01:20]}  Qf5 {[%clk 0:00:41]} 25. c3 {[%clk 0:00:22]}  Ne2+ {[%clk 0:00:40]} 26. Bxe2 {[%clk 0:00:21]}  fxe2 {[%clk 0:00:41]} 27. Rxe2 {[%clk 0:00:20]}  Rf7 {[%clk 0:00:33]} 28. Rd2 {[%clk 0:00:17]}  Rd8 {[%clk 0:00:30]} 29. d6 {[%clk 0:00:17]}  Rfd7 {[%clk 0:00:30]} 30. Qe2 {[%clk 0:00:13]}  Qf6 {[%clk 0:00:26]} 31. Rad1 {[%clk 0:00:05]}  Rxd6 {[%clk 0:00:25]} 32. Rxd6 {[%clk 0:00:05]}  Rxd6 {[%clk 0:00:26]} 33. Rxd6 {[%clk 0:00:06]}  Qxd6 {[%clk 0:00:27]} 34. f4 {[%clk 0:00:07]}  Kf7 {[%clk 0:00:24]} 35. Kf2 {[%clk 0:00:07]}  Qd5 {[%clk 0:00:24]} 36. Qe5 {[%clk 0:00:05]}  Qd2+ {[%clk 0:00:21]} 37. Qe2 {[%clk 0:00:06]}  Qd5 {[%clk 0:00:22]} 38. Qe5 {[%clk 0:00:05]}  Qd2+ {[%clk 0:00:21]} 39. Qe2 {[%clk 0:00:06]}  Qd5 {[%clk 0:00:18]} 1/2-1/2


[Site "https://www.chess.com"]

[Event "Titled Tuesday Blitz March 21 Late 2023"]
[White "Raja Rithvik R"]
[Black "Dias, Paulo"]
[WhiteFideId "35007394"]
[BlackFideId "1900803"]
[WhiteElo "2402"]
[BlackElo "2293"]
[Result "1-0"]
[Round "01"]
[TimeControl "180+2"]
[Date "2023.03.21"]
[WhiteClock "0:00:06"]
[BlackClock "0:00:10"]

1. b3 {[%clk 0:02:58]}  d5 {[%clk 0:01:59]} 2. Bb2 {[%clk 0:02:58]}  Nf6 {[%clk 0:01:58]} 3. e3 {[%clk 0:02:58]}  Bf5 {[%clk 0:01:58]} 4. Nf3 {[%clk 0:02:58]}  c6 {[%clk 0:01:57]} 5. d3 {[%clk 0:02:57]}  e6 {[%clk 0:01:57]} 6. Nbd2 {[%clk 0:02:57]}  Nbd7 {[%clk 0:01:56]} 7. Be2 {[%clk 0:02:54]}  a5 {[%clk 0:01:56]} 8. Nh4 {[%clk 0:02:52]}  Bg6 {[%clk 0:01:55]} 9. a3 {[%clk 0:02:52]}  Be7 {[%clk 0:01:48]} 10. O-O {[%clk 0:02:51]}  a4 {[%clk 0:01:43]} 11. b4 {[%clk 0:02:50]}  c5 {[%clk 0:01:43]} 12. bxc5 {[%clk 0:02:47]}  Bxc5 {[%clk 0:01:42]} 13. c4 {[%clk 0:02:35]}  O-O {[%clk 0:01:39]} 14. Nxg6 {[%clk 0:02:33]}  hxg6 {[%clk 0:01:39]} 15. cxd5 {[%clk 0:02:26]}  Nxd5 {[%clk 0:01:39]} 16. Ne4 {[%clk 0:02:16]}  Be7 {[%clk 0:01:36]} 17. d4 {[%clk 0:02:12]}  N7f6 {[%clk 0:01:28]} 18. Nc5 {[%clk 0:02:07]}  Bxc5 {[%clk 0:01:28]} 19. dxc5 {[%clk 0:02:08]}  Qa5 {[%clk 0:01:28]} 20. Qd4 {[%clk 0:02:05]}  Rac8 {[%clk 0:01:27]} 21. Rac1 {[%clk 0:02:00]}  Rfd8 {[%clk 0:01:27]} 22. Bf3 {[%clk 0:01:37]}  Ne7 {[%clk 0:01:19]} 23. Qh4 {[%clk 0:01:23]}  Rxc5 {[%clk 0:01:09]} 24. Rxc5 {[%clk 0:01:16]}  Qxc5 {[%clk 0:01:09]} 25. Qxa4 {[%clk 0:01:12]}  Ned5 {[%clk 0:01:02]} 26. Rc1 {[%clk 0:01:05]}  Qb6 {[%clk 0:01:01]} 27. Bd4 {[%clk 0:01:05]}  Qa6 {[%clk 0:00:58]} 28. Qxa6 {[%clk 0:01:04]}  bxa6 {[%clk 0:00:58]} 29. g3 {[%clk 0:01:01]}  Rb8 {[%clk 0:00:55]} 30. Rc6 {[%clk 0:01:00]}  Rb1+ {[%clk 0:00:43]} 31. Kg2 {[%clk 0:00:58]}  a5 {[%clk 0:00:43]} 32. Ra6 {[%clk 0:00:53]}  g5 {[%clk 0:00:38]} 33. h3 {[%clk 0:00:50]}  Rc1 {[%clk 0:00:31]} 34. Rxa5 {[%clk 0:00:49]}  Rc2 {[%clk 0:00:32]} 35. a4 {[%clk 0:00:45]}  Ra2 {[%clk 0:00:29]} 36. Ra8+ {[%clk 0:00:41]}  Kh7 {[%clk 0:00:29]} 37. a5 {[%clk 0:00:42]}  e5 {[%clk 0:00:29]} 38. Bxe5 {[%clk 0:00:26]}  Nxe3+ {[%clk 0:00:29]} 39. Kg1 {[%clk 0:00:27]}  Nc4 {[%clk 0:00:20]} 40. Bxf6 {[%clk 0:00:22]}  gxf6 {[%clk 0:00:20]} 41. a6 {[%clk 0:00:22]}  Ra3 {[%clk 0:00:19]} 42. Be4+ {[%clk 0:00:18]}  Kg7 {[%clk 0:00:17]} 43. a7 {[%clk 0:00:16]}  Nd6 {[%clk 0:00:17]} 44. Rd8 {[%clk 0:00:10]}  Nxe4 {[%clk 0:00:14]} 45. a8=Q {[%clk 0:00:11]}  Rxa8 {[%clk 0:00:12]} 46. Rxa8 {[%clk 0:00:12]}  f5 {[%clk 0:00:13]} 47. Ra6 {[%clk 0:00:11]}  f6 {[%clk 0:00:13]} 48. Kg2 {[%clk 0:00:12]}  Kg6 {[%clk 0:00:13]} 49. Ra4 {[%clk 0:00:12]}  Nc5 {[%clk 0:00:13]} 50. Rc4 {[%clk 0:00:12]}  Ne6 {[%clk 0:00:13]} 51. Kf3 {[%clk 0:00:12]}  Ng7 {[%clk 0:00:12]} 52. Rc6 {[%clk 0:00:11]}  Kf7 {[%clk 0:00:09]} 53. Ke3 {[%clk 0:00:12]}  Ne6 {[%clk 0:00:09]} 54. Ra6 {[%clk 0:00:12]}  f4+ {[%clk 0:00:09]} 55. Kf3 {[%clk 0:00:08]}  fxg3 {[%clk 0:00:10]} 56. fxg3 {[%clk 0:00:09]}  Nd4+ {[%clk 0:00:10]} 57. Ke4 {[%clk 0:00:08]}  Ne6 {[%clk 0:00:10]} 58. Rc6 {[%clk 0:00:05]}  Nf8 {[%clk 0:00:10]} 59. Kf5 {[%clk 0:00:04]}  Nd7 {[%clk 0:00:09]} 60. Rc7 {[%clk 0:00:05]}  Ke7 {[%clk 0:00:10]} 61. Rxd7+ {[%clk 0:00:06]} 1-0


[Site "https://www.chess.com"]

[Event "Titled Tuesday Blitz March 21 Late 2023"]
[White "Pap, Gyula"]
[Black "Piriflillo"]
[WhiteFideId "725323"]
[WhiteElo "2519"]
[BlackElo "2434"]
[Result "1-0"]
[Round "01"]
[TimeControl "180+2"]
[Date "2023.03.21"]
[WhiteClock "0:00:22"]
[BlackClock "0:00:02"]

1. d4 {[%clk 0:02:59]}  Nf6 {[%clk 0:02:59]} 2. c3 {[%clk 0:02:58]}  d5 {[%clk 0:02:56]} 3. Bg5 {[%clk 0:02:56]}  Ne4 {[%clk 0:02:50]} 4. Bf4 {[%clk 0:02:56]}  c5 {[%clk 0:02:45]} 5. e3 {[%clk 0:02:55]}  Nc6 {[%clk 0:02:37]} 6. Bd3 {[%clk 0:02:48]}  Qb6 {[%clk 0:02:23]} 7. Qe2 {[%clk 0:02:47]}  e6 {[%clk 0:02:12]} 8. Nf3 {[%clk 0:02:45]}  Be7 {[%clk 0:02:06]} 9. O-O {[%clk 0:02:42]}  O-O {[%clk 0:02:06]} 10. a4 {[%clk 0:02:43]}  Na5 {[%clk 0:01:56]} 11. Bxe4 {[%clk 0:01:41]}  dxe4 {[%clk 0:01:55]} 12. Ng5 {[%clk 0:01:42]}  Bxg5 {[%clk 0:01:47]} 13. Bxg5 {[%clk 0:01:43]}  Nc6 {[%clk 0:01:16]} 14. a5 {[%clk 0:01:38]}  Nxa5 {[%clk 0:01:02]} 15. Be7 {[%clk 0:01:11]}  Re8 {[%clk 0:01:02]} 16. dxc5 {[%clk 0:01:06]}  Qc6 {[%clk 0:00:51]} 17. Rxa5 {[%clk 0:01:03]}  Rxe7 {[%clk 0:00:51]} 18. Na3 {[%clk 0:01:03]}  b6 {[%clk 0:00:41]} 19. cxb6 {[%clk 0:01:01]}  axb6 {[%clk 0:00:41]} 20. Rxa8 {[%clk 0:00:58]}  Qxa8 {[%clk 0:00:42]} 21. Rd1 {[%clk 0:00:58]}  Rd7 {[%clk 0:00:37]} 22. h4 {[%clk 0:00:57]}  Rxd1+ {[%clk 0:00:34]} 23. Qxd1 {[%clk 0:00:58]}  Qd5 {[%clk 0:00:35]} 24. Qxd5 {[%clk 0:00:43]}  exd5 {[%clk 0:00:34]} 25. Nb5 {[%clk 0:00:44]}  Kf8 {[%clk 0:00:27]} 26. Nc7 {[%clk 0:00:36]}  Bb7 {[%clk 0:00:23]} 27. g4 {[%clk 0:00:37]}  Ke7 {[%clk 0:00:22]} 28. Kg2 {[%clk 0:00:35]}  Kd6 {[%clk 0:00:19]} 29. Ne8+ {[%clk 0:00:27]}  Kc5 {[%clk 0:00:18]} 30. Nxg7 {[%clk 0:00:28]}  Kc4 {[%clk 0:00:17]} 31. Kf1 {[%clk 0:00:29]}  Kb3 {[%clk 0:00:18]} 32. Ke1 {[%clk 0:00:29]}  Kxb2 {[%clk 0:00:18]} 33. Kd2 {[%clk 0:00:30]}  Bc8 {[%clk 0:00:15]} 34. g5 {[%clk 0:00:28]}  Bd7 {[%clk 0:00:12]} 35. Nh5 {[%clk 0:00:27]}  Kb3 {[%clk 0:00:07]} 36. Nf6 {[%clk 0:00:27]}  Bf5 {[%clk 0:00:07]} 37. Nxd5 {[%clk 0:00:27]}  Kc4 {[%clk 0:00:06]} 38. Nxb6+ {[%clk 0:00:26]}  Kb5 {[%clk 0:00:05]} 39. Nd5 {[%clk 0:00:26]}  Kc5 {[%clk 0:00:06]} 40. Nf4 {[%clk 0:00:25]}  Kc4 {[%clk 0:00:03]} 41. Ne2 {[%clk 0:00:22]}  Bd7 {[%clk 0:00:03]} 42. Ng3 {[%clk 0:00:23]}  Bc6 {[%clk 0:00:02]} 43. Nf5 {[%clk 0:00:22]}  Bd7 {[%clk 0:00:02]} 44. Nd6+ {[%clk 0:00:22]}  Kd5 {[%clk 0:00:01]} 45. Nxf7 {[%clk 0:00:23]}  Ke6 {[%clk 0:00:01]} 46. Nh6 {[%clk 0:00:24]}  Bc6 {[%clk 0:00:01]} 47. c4 {[%clk 0:00:24]}  Ke5 {[%clk 0:00:01]} 48. Kc3 {[%clk 0:00:24]}  Kd6 {[%clk 0:00:02]} 49. Kd4 {[%clk 0:00:24]}  Ke6 {[%clk 0:00:02]} 50. Kc5 {[%clk 0:00:24]}  Bd7 {[%clk 0:00:02]} 51. Kb6 {[%clk 0:00:24]}  Kd6 {[%clk 0:00:02]} 52. c5+ {[%clk 0:00:24]}  Kd5 {[%clk 0:00:02]} 53. Ng8 {[%clk 0:00:22]} 1-0


[Site "https://www.chess.com"]